[Event "GER-chT Youth Countries 2018"]
[Site "Wurzburg"]
[Date "2018.10.03"]
[Round "1"]
[White "Laux, Dominik"]
[Black "Schnabel, Luise"]
[Result "1/2-1/2"]
[ECO "A40"]
[WhiteElo "1987"]
[BlackElo "1753"]
[Annotator "NA"]
[PlyCount "99"]
[EventDate "2018.10.03"]
[EventType "team-tourn"]
[EventCountry "GER"]
[SourceTitle "playchess.com"]
[Source "ChessBase"]
[SourceQuality "1"]
[TimeControl "40/5400+30:1800+30"]

{[%evp 30,96,36,32767,32767,4,97,114,124,136,133,130,139,118,145,143,127,32767,141,140,143,139,143,130,131,131,32767,132,160,32767,32767,32767,165,183,199,148,156,140,178,180,183,189,163,159,148,32767,158,32767,151,45,62,59,70,14,73,43,47,18,28,28,60,8,32767,32767,8,8,8,8,0]} 1. d4 e6 2. Bf4 d5 3. e3 Nf6 4. Nd2 {[%emt 0:02:51]} c5 {[%emt 0:03:16]} 5. c3 {[%emt 0:01:06]} Bd6 {[%emt 0:01:35]} 6. Bg3 {[%emt 0:02:19]} Nc6 {[%emt 0:05:11]} 7. Ngf3 {[%emt 0:03:16]} O-O {[%emt 0:05:07]} 8. Bd3 {[%emt 0:04:35]} b6 {[%emt 0:03:35]} 9. dxc5 {[%emt 0:11:12] D02: 1 d4 d5 2 Nf3 sidelines, including 2...Nf6 3 g3 and 2...Nf6 3 Bf4} (9. e4 Be7 10. e5 Nh5 11. Nf1 cxd4 12. Nxd4 Nxd4 13. cxd4 g6 14. Ne3 f5 15. exf6 Bxf6 16. Be2 Nxg3 17. hxg3 {½-½ (37) Nakamura,H (2787)-Svidler,P (2760) Moscow 2018}) 9... bxc5 {[%emt 0:02:25]} 10. e4 {[%emt 0:03:12]} Qc7 {[%emt 0:13:19]} 11. Qe2 {[%emt 0:05:01]} Nd7 $146 {[%emt 0:23:34]} ({Predecessor:} 11... Ne5 12. Nxe5 Bxe5 13. O-O Bxg3 14. hxg3 Qe5 15. Rfe1 Bb7 16. exd5 Qxe2 17. Rxe2 Bxd5 {1-0 (60) Harmatosi,J (2210)-Burbigde,D Budapest 2003}) 12. O-O {[%emt 0:14:04]} Nce5 {[%emt 0:06:38]} 13. Nxe5 {[%emt 0:06:20]} Nxe5 {[%emt 0:02:25]} 14. Rfe1 {[%emt 0:08:22]} Bb7 {[%emt 0:07:44]} 15. Bxe5 {[%emt 0:10:08]} Bxe5 {[%emt 0:00:57]} 16. exd5 {[%emt 0:00:41]} Bxh2+ {[%emt 0:06:16]} 17. Kh1 {[%emt 0:01:44]} Bd6 {[%emt 0:06:59]} ({Black should play} 17... Bf4 $1 $14) 18. dxe6 {[%emt 0:06:03]} Rae8 {[%emt 0:06:21] [#]} ({Wrong is} 18... Qc6 $2 19. Be4 $18) 19. exf7+ $1 {[%emt 0:04:09]} Qxf7 {[%emt 0:00:36]} 20. Bc4 {[%emt 0:01:18]} Bd5 {[%emt 0:00:14]} 21. Bxd5 {[%emt 0:00:26]} Qxd5 {[%emt 0:00:03]} 22. Qc4 {[%emt 0:00:49]} Qxc4 {[%emt 0:02:12]} 23. Nxc4 {[%emt 0:00:10]} Bc7 {[%emt 0:00:12]} 24. Kg1 {[%emt 0:03:36]} Kf7 {[%emt 0:01:22]} 25. Kf1 {[%emt 0:01:46]} Re6 {[%emt 0:01:10]} 26. Rad1 {[%emt 0:02:49]} Rxe1+ {[%emt 0:00:46]} 27. Kxe1 {[%emt 0:01:43]} Ke6 {[%emt 0:00:48]} 28. Ke2 {[%emt 0:01:56]} Rd8 {[%emt 0:00:34]} 29. Rxd8 {[%emt 0:02:21]} Bxd8 {[%emt 0:00:02]} 30. Kd3 {[%emt 0:00:44]} h6 {[%emt 0:00:35]} 31. Ne3 {[%emt 0:01:02]} Bh4 {[%emt 0:00:40]} 32. g3 {[%emt 0:01:14]} Be7 {[%emt 0:00:26]} 33. f4 {[%emt 0:00:31]} a6 {[%emt 0:00:45]} 34. Ke4 {[%emt 0:00:38]} Bd6 {[%emt 0:00:32]} 35. g4 {[%emt 0:00:43]} g6 {[%emt 0:00:27]} 36. Nc4 {[%emt 0:00:30]} Bc7 {[%emt 0:00:24]} 37. a4 {[%emt 0:00:31]} Bb8 {[%emt 0:00:27]} (37... h5 $142) 38. Ne3 {[%emt 0:00:35]} h5 {[%emt 0:00:34]} 39. gxh5 {[%emt 0:00:29]} (39. Kf3 $16) 39... gxh5 {[%emt 0:00:02]} 40. Nf5 {[%emt 0:00:19]} Kf6 {[%emt 0:00:38]} 41. b4 {[%emt 0:30:41]} cxb4 {[%emt 0:30:26]} 42. cxb4 {[%emt 0:00:01]} Bc7 {[%emt 0:00:43]} 43. b5 {[%emt 0:01:03]} axb5 {[%emt 0:00:30]} 44. axb5 {[%emt 0:00:01]} Bb6 {[%emt 0:00:32]} 45. Nh4 $2 {[%emt 0:00:00]} (45. Ne3 $18 Bc5 46. Ng2) 45... Bc7 {[%emt 0:00:00]} 46. Nf5 {[%emt 0:00:00]} Bd8 {[%emt 0:00:00]} 47. Ne3 {[%emt 0:00:00]} Ke6 {[%emt 0:00:00]} 48. Nc4 {[%emt 0:00:00]} h4 $11 {[%emt 0:00:00]} 49. b6 {[%emt 0:00:00]} h3 {[%emt 0:00:00]} 50. Kf3 {[%emt 0:00:00]} 1/2-1/2

[Event "GER-chT Youth Countries 2018"]
[Site "Wurzburg"]
[Date "2018.10.03"]
[Round "1"]
[White "Wiesner, Paula"]
[Black "Lesny, Florian"]
[Result "0-1"]
[ECO "D46"]
[WhiteElo "1969"]
[BlackElo "2073"]
[Annotator "NA RC"]
[PlyCount "60"]
[EventDate "2018.10.03"]
[EventType "team-tourn"]
[EventCountry "GER"]
[SourceTitle "playchess.com"]
[Source "ChessBase"]
[SourceQuality "1"]
[TimeControl "40/5400+30:1800+30"]

1. d4 d5 2. c4 c6 3. e3 Nf6 4. Nf3 e6 5. Nc3 Nbd7 6. Bd3 Bd6 7. O-O O-O 8. Qe2 Qe7 {[%emt 0:05:35] D46: Semi-Slav: 5 e3 Nbd7 6 Bd3, Black avoids the Meran} 9. Rd1 {[%emt 0:06:40]} (9. e4 dxc4 10. Bxc4 e5 11. Rd1 h6 12. Nh4 Nb6 13. Ng6 Qc7 14. dxe5 Bxe5 15. Nxe5 Qxe5 16. Bd3 {1-0 (38) Tallaksen,L (2298)-Hole,O (2324) Sarpsborg 2018}) 9... dxc4 {[%emt 0:07:02]} 10. Bxc4 {[%emt 0:00:08]} e5 {[%emt 0:01:07]} 11. d5 {[%emt 0:10:40]} e4 $146 {[%emt 0:06:55]} ({Predecessor:} 11... cxd5 12. Nxd5 Nxd5 13. Bxd5 Nf6 14. e4 Nxd5 15. Rxd5 Be6 16. Rd1 f6 17. Be3 b6 18. b3 Rac8 19. Rac1 Ba3 20. Rxc8 Rxc8 21. h3 Kf7 22. Qd3 {½-½ (22) Juhasz,Z-Jachym,D Balatonlelle 2001}) 12. Ne1 {[%emt 0:11:29]} Ne5 {[%emt 0:03:29]} 13. h3 {[%emt 0:04:07]} b5 {[%emt 0:02:28]} 14. Bb3 {[%emt 0:03:51]} b4 {[%emt 0:02:14]} 15. Na4 {[%emt 0:01:55]} cxd5 {[%emt 0:01:14]} 16. Bxd5 {[%emt 0:02:47]} Nxd5 {[%emt 0:02:25]} 17. Rxd5 {[%emt 0:00:11]} Be6 {[%emt 0:01:55]} 18. Rd4 {[%emt 0:09:01]} f5 {[%emt 0:02:25]} 19. f4 {[%emt 0:09:50]} exf3 {[%emt 0:04:53]} 20. Nxf3 {[%emt 0:00:18]} Nxf3+ {[%emt 0:00:20]} 21. Qxf3 {[%emt 0:00:36]} Be5 {[%emt 0:01:22]} 22. Rd1 {[%emt 0:01:20]} Rac8 {[%emt 0:03:48]} 23. e4 {[%emt 0:05:10]} Qe8 {[%emt 0:03:45]} 24. exf5 {[%emt 0:05:08]} Qxa4 {[%emt 0:02:56]} 25. Qe2 {[%emt 0:01:29]} Bf7 {[%emt 0:02:39]} 26. Bg5 {[%emt 0:02:23]} Rfe8 {[%emt 0:02:18]} 27. Qf2 {[%emt 0:00:36]} Qc2 {[%emt 0:02:15]} 28. Rd2 {[%emt 0:00:57]} Qc1+ {[%emt 0:01:28]} 29. Rxc1 {[%emt 0:00:07]} Rxc1+ {[%emt 0:00:13]} 30. Qf1 {[%emt 0:00:01]} Bh2+ {[%emt 0:00:17]} 0-1

[Event "GER-chT Youth Countries 2018"]
[Site "Wurzburg"]
[Date "2018.10.03"]
[Round "1"]
[White "Yankelevich, Michael"]
[Black "Troyke, Jannis"]
[Result "1-0"]
[ECO "B34"]
[WhiteElo "1961"]
[BlackElo "1924"]
[Annotator "NA RC"]
[PlyCount "39"]
[EventDate "2018.10.03"]
[EventType "team-tourn"]
[EventCountry "GER"]
[SourceTitle "playchess.com"]
[Source "ChessBase"]
[SourceQuality "1"]
[TimeControl "40/5400+30:1800+30"]

1. e4 {[%emt 0:00:00]} c5 {[%emt 0:00:00]} 2. Ne2 {[%emt 0:00:00]} Nc6 {[%emt 0:02:17]} 3. Nbc3 {[%emt 0:00:13]} g6 {[%emt 0:01:28]} 4. d4 {[%emt 0:00:40]} cxd4 {[%emt 0:00:23]} 5. Nxd4 {[%emt 0:00:26]} Bg7 {[%emt 0:00:21]} 6. Nde2 {[%emt 0:00:21]} Nf6 {[%emt 0:01:19]} 7. g3 {[%emt 0:01:06]} d6 {[%emt 0:06:08]} 8. Bg2 {[%emt 0:01:56]} O-O {[%emt 0:01:04]} 9. O-O {[%emt 0:01:43]} Bd7 {[%emt 0:03:24]} 10. h3 {[%emt 0:02:17]} Rb8 {[%emt 0:08:07]} 11. a4 {[%emt 0:00:57]} a6 {[%emt 0:01:03]} 12. Nd5 {[%emt 0:01:01]} Nxd5 {[%emt 0:07:46] B70: Sicilian Dragon: 6 g3 and 6 Be2 (without a later Be3)} 13. exd5 {[%emt 0:00:34]} Na5 {[%emt 0:03:37] [#]} 14. Re1 $146 {[%emt 0:03:11]} ({Predecessor:} 14. Ra2 Qc7 15. b3 b5 16. axb5 axb5 17. Be3 Ra8 18. Bd4 Nb7 19. Rxa8 Rxa8 20. Bxg7 Kxg7 {1-0 (45) Baklan,V (2600)-Drnovsek,G (2421) Trieste 2017}) 14... Re8 {[%emt 0:07:27]} 15. c3 {[%emt 0:02:02]} Qb6 {[%emt 0:06:36]} 16. Qd3 {[%emt 0:10:53]} Nb3 {[%emt 0:05:26]} 17. Be3 {[%emt 0:01:25]} Qa5 {[%emt 0:15:02]} (17... Nc5 $11 18. Qd2 Qc7) 18. Ra3 {[%emt 0:01:03]} Bxa4 $2 {[%emt 0:06:30]} (18... Nc5 $16 {might work better.} 19. Qd1 Nxa4) 19. Qc4 $1 {[%emt 0:01:10]} b5 {[%emt 0:00:15] [#]} 20. Qxb3 $18 {[%emt 0:00:19]} 1-0

[Event "GER-chT Youth Countries 2018"]
[Site "Wurzburg"]
[Date "2018.10.03"]
[Round "1"]
[White "Wagner, Leopold Franziskus"]
[Black "Keyser, Robin"]
[Result "1-0"]
[ECO "C19"]
[WhiteElo "1934"]
[BlackElo "1999"]
[Annotator "NA"]
[PlyCount "87"]
[EventDate "2018.10.03"]
[EventType "team-tourn"]
[EventCountry "GER"]
[SourceTitle "playchess.com"]
[Source "ChessBase"]
[SourceQuality "1"]
[TimeControl "40/5400+30:1800+30"]

1. e4 {[%emt 0:00:00]} e6 {[%emt 0:00:00]} 2. d4 {[%emt 0:00:27]} d5 {[%emt 0:00:04]} 3. Nc3 {[%emt 0:01:08]} Bb4 {[%emt 0:00:43]} 4. e5 {[%emt 0:00:26]} c5 {[%emt 0:00:44]} 5. a3 {[%emt 0:02:34]} Bxc3+ {[%emt 0:00:34]} 6. bxc3 {[%emt 0:00:06]} Ne7 {[%emt 0:01:17]} 7. Nf3 {[%emt 0:00:40]} b6 {[%emt 0:03:04]} 8. h4 {[%emt 0:02:05] C19: French: 3 Nc3 Bb4: Main line: 7 Nf3 and 7 a4} (8. Bb5+ Bd7 9. Bd3 Ba4 10. O-O c4 11. Be2 Na6 12. Ne1 Nc7 13. g3 Qd7 14. Ng2 O-O-O 15. Bg4 Kb7 16. Bh3 Ng6 17. Qe2 Rde8 {0-1 (50) Iordachescu,V (2600)-Vallejo Pons,F (2710) Gallipoli 2017}) 8... Ba6 {[%emt 0:04:10]} 9. h5 {[%emt 0:00:46]} h6 {[%emt 0:01:00]} 10. g4 $146 {[%emt 0:01:55]} ({Predecessor:} 10. Bxa6 Nxa6 11. Nh4 Qc7 12. O-O Rc8 13. Ra2 cxd4 14. cxd4 Qc4 15. Rb2 Nc6 {0-1 (38) Moll,A (2172)-Blees,A (2410) Hoogeveen 1999}) 10... Bxf1 {[%emt 0:06:48]} 11. Kxf1 {[%emt 0:00:03]} Qc7 {[%emt 0:04:15]} 12. g5 {[%emt 0:12:52]} hxg5 {[%emt 0:02:16]} 13. Bxg5 {[%emt 0:06:30]} Nbc6 {[%emt 0:03:47]} 14. h6 {[%emt 0:12:46]} O-O-O {[%emt 0:08:16]} 15. Qd3 {[%emt 0:05:30]} c4 {[%emt 0:13:14]} 16. Qd2 {[%emt 0:01:01]} Rde8 {[%emt 0:02:59]} 17. Ke2 {[%emt 0:00:36]} gxh6 {[%emt 0:01:09]} 18. Bf6 {[%emt 0:01:00]} Rhg8 {[%emt 0:00:53]} 19. Rxh6 {[%emt 0:01:26]} Rg6 {[%emt 0:01:52]} 20. Rxg6 {[%emt 0:01:37]} Nxg6 {[%emt 0:00:25]} 21. Rh1 {[%emt 0:01:13]} Nce7 {[%emt 0:02:32]} 22. Rh7 {[%emt 0:06:24]} Ng8 {[%emt 0:02:32]} 23. Qg5 {[%emt 0:00:43]} Qd7 {[%emt 0:01:11]} 24. Kd2 {[%emt 0:01:04]} b5 {[%emt 0:01:53]} 25. Nh2 {[%emt 0:02:19]} a5 {[%emt 0:03:03]} 26. Ng4 {[%emt 0:00:46]} Qc7 {[%emt 0:01:13]} 27. Nh6 {[%emt 0:14:47]} Nxh6 {[%emt 0:00:40]} 28. Qxh6 {[%emt 0:01:09]} b4 $16 {[%emt 0:00:18]} (28... Rg8 $11 {keeps the balance.}) 29. axb4 {[%emt 0:01:00]} axb4 {[%emt 0:00:07]} 30. Qg7 {[%emt 0:00:23]} bxc3+ {[%emt 0:01:21]} 31. Ke3 {[%emt 0:00:53]} Rf8 {[%emt 0:01:32]} 32. Rh6 {[%emt 0:00:36]} Re8 {[%emt 0:00:15]} 33. Bg5 {[%emt 0:07:47]} Ne7 {[%emt 0:02:46]} 34. Bxe7 {[%emt 0:00:31]} Qxe7 {[%emt 0:00:17]} 35. Rf6 {[%emt 0:00:40]} Rf8 {[%emt 0:02:24]} 36. Rxe6 {[%emt 0:03:56]} Qxe6 {[%emt 0:00:06]} 37. Qxf8+ {[%emt 0:00:05]} Kd7 {[%emt 0:00:17]} 38. Qd6+ {[%emt 0:01:25]} Qxd6 {[%emt 0:00:13]} 39. exd6 Kxd6 {[%emt 0:05:39]} 40. Kf4 {[%emt 0:00:24]} Ke6 41. Kg5 Ke7 {[%emt 0:30:53]} 42. Kf5 {[%emt 0:30:15]} f6 {[%emt 0:00:48]} 43. Kg4 {[%emt 0:00:07]} Ke6 {[%emt 0:00:30]} 44. f4 {[%emt 0:00:08]} 1-0

[Event "GER-chT Youth Countries 2018"]
[Site "Wurzburg"]
[Date "2018.10.03"]
[Round "1"]
[White "Koehler, Lukas"]
[Black "Goldbeck, Lars"]
[Result "1-0"]
[ECO "A01"]
[WhiteElo "1926"]
[BlackElo "2184"]
[Annotator "NA"]
[PlyCount "51"]
[EventDate "2018.10.03"]
[EventType "team-tourn"]
[EventCountry "GER"]
[SourceTitle "playchess.com"]
[Source "ChessBase"]
[SourceQuality "1"]
[TimeControl "40/5400+30:1800+30"]

{[%evp 9,34,20,33,33,34,30,41,30,27,0,0,0,0,-10,-4,0,29,0,0,-2,-12,-24,-18,-19,-12,-66,-35]} 1. b3 {[%emt 0:00:00]} Nf6 {[%emt 0:00:00]} 2. Bb2 {[%emt 0:00:00]} d5 {[%emt 0:00:00]} 3. e3 {[%emt 0:01:12]} Bg4 {[%emt 0:03:48]} 4. Be2 {[%emt 0:07:46]} Bxe2 {[%emt 0:01:29]} 5. Qxe2 {[%emt 0:00:20]} Nc6 {[%emt 0:17:19]} (5... c6 6. Bxf6 gxf6 7. Nf3 e6 8. O-O Nd7 9. c4 f5 10. Nc3 Bd6 11. Rab1 Qe7 12. cxd5 cxd5 {½-½ (79) Markowski,T (2558)-Grabarczyk,M (2452) Chorzow 2013}) 6. f4 {[%emt 0:03:15] A01: Larsen-Eröffnung} e6 {[%emt 0:01:52]} 7. Nf3 {[%emt 0:00:36]} Bd6 {[%emt 0:00:34]} 8. O-O $146 {[%emt 0:05:46] Weiß steht etwas besser.} ({Vorgänger:} 8. d3 O-O 9. Nbd2 Qe7 10. Ne5 Rad8 {0-1 (64) Falahat,S-Sanner,D (2253) Cochem 1999}) 8... O-O {[%emt 0:04:49]} 9. d4 {[%emt 0:22:09]} Ne7 {[%emt 0:11:25]} 10. Nbd2 {[%emt 0:05:32]} Nf5 {[%emt 0:07:23]} 11. Ne5 {[%emt 0:04:08]} c5 {[%emt 0:04:55]} 12. g4 {[%emt 0:10:29]} Ne7 {[%emt 0:00:18]} 13. Kh1 {[%emt 0:02:46]} Rc8 {[%emt 0:06:40]} 14. c4 {[%emt 0:02:24]} cxd4 {[%emt 0:05:19]} 15. exd4 {[%emt 0:03:03]} Bb4 {[%emt 0:02:30]} 16. Ndf3 {[%emt 0:03:30]} Ne4 {[%emt 0:04:38]} 17. Rfc1 {[%emt 0:03:13]} (17. c5 $11) 17... Bd6 {[%emt 0:05:22] Precision: Weiß = 63%, Schwarz = 68%.} 18. Nd2 {[%emt 0:03:48]} f5 {[%emt 0:03:51]} 19. Nxe4 {[%emt 0:06:34]} fxe4 {[%emt 0:00:16]} 20. Rf1 Ng6 21. f5 {[%emt 0:04:54]} exf5 {[%emt 0:08:19]} 22. gxf5 {[%emt 0:00:11]} Nh4 {[%emt 0:02:16]} 23. Qg4 {[%emt 0:02:03]} Qf6 {[%emt 0:03:17]} 24. Nd7 {[%emt 0:06:42]} Qh6 {[%emt 0:00:01]} 25. f6 {[%emt 0:00:40]} Qd2 {[%emt 0:05:10]} 26. Qxg7# 1-0

[Event "GER-chT Youth Countries 2018"]
[Site "Wurzburg"]
[Date "2018.10.03"]
[Round "1"]
[White "Schumann, Rabea"]
[Black "Musiolik, David"]
[Result "0-1"]
[ECO "A13"]
[WhiteElo "1903"]
[BlackElo "2057"]
[Annotator "NA"]
[PlyCount "124"]
[EventDate "2018.10.03"]
[EventType "team-tourn"]
[EventCountry "GER"]
[SourceTitle "playchess.com"]
[Source "ChessBase"]
[SourceQuality "1"]
[TimeControl "40/5400+30:1800+30"]

1. c4 {[%emt 0:00:00]} e6 {[%emt 0:00:00]} 2. Nf3 {[%emt 0:00:00]} Nf6 {[%emt 0:00:10]} 3. g3 {[%emt 0:00:03]} d5 {[%emt 0:00:08]} 4. Bg2 {[%emt 0:00:21]} dxc4 {[%emt 0:00:07]} 5. Na3 {[%emt 0:01:42]} Bxa3 {[%emt 0:00:46]} 6. bxa3 {[%emt 0:00:08]} Nc6 {[%emt 0:03:30]} 7. Qa4 {[%emt 0:08:15]} O-O {[%emt 0:08:45]} 8. Qxc4 {[%emt 0:04:47]} e5 {[%emt 0:04:08]} 9. d3 {[%emt 0:12:15]} h6 {[%emt 0:16:26]} 10. O-O {[%emt 0:02:44]} Nd4 {[%emt 0:12:56]} 11. Nxd4 {[%emt 0:09:57]} Qxd4 {[%emt 0:09:11]} 12. Qxd4 {[%emt 0:06:40]} exd4 {[%emt 0:00:01]} 13. Bf4 {[%emt 0:00:57]} c6 {[%emt 0:02:47]} 14. Rab1 {[%emt 0:06:33]} Rd8 {[%emt 0:03:31]} 15. Rfc1 {[%emt 0:04:10]} Nd5 {[%emt 0:03:16]} 16. Bd2 {[%emt 0:03:35]} g5 {[%emt 0:07:10]} 17. Rc5 {[%emt 0:03:49]} Nc7 $16 {[%emt 0:02:49]} (17... Re8 $14) 18. Ba5 {[%emt 0:18:35]} Ne6 {[%emt 0:04:22]} 19. Rc2 {[%emt 0:01:28]} Rd6 {[%emt 0:04:04]} 20. Bb4 {[%emt 0:01:37]} Rd7 {[%emt 0:00:31]} 21. Ba5 {[%emt 0:02:33]} c5 {[%emt 0:02:01]} 22. Bd2 {[%emt 0:03:56]} Rb8 {[%emt 0:01:50]} 23. a4 {[%emt 0:00:42]} b6 {[%emt 0:01:51]} 24. a5 {[%emt 0:01:10]} Bb7 {[%emt 0:05:31]} 25. axb6 {[%emt 0:00:34]} Bxg2 {[%emt 0:00:23]} 26. Kxg2 {[%emt 0:00:09]} Rxb6 {[%emt 0:00:56]} 27. Rcb2 {[%emt 0:01:42]} Rdb7 {[%emt 0:00:35]} 28. Rxb6 {[%emt 0:01:31]} Rxb6 {[%emt 0:01:00]} 29. Rxb6 {[%emt 0:00:09]} axb6 {[%emt 0:00:01]} 30. Kf3 {[%emt 0:01:39]} f6 {[%emt 0:01:51]} 31. Ke4 {[%emt 0:00:43]} Nc7 {[%emt 0:00:17]} 32. e3 {[%emt 0:01:03]} dxe3 {[%emt 0:01:42]} 33. fxe3 {[%emt 0:00:20]} Kf7 {[%emt 0:00:20]} 34. Bc3 {[%emt 0:01:31]} h5 {[%emt 0:02:08]} 35. h3 {[%emt 0:00:30]} Ke6 {[%emt 0:00:40]} 36. g4 {[%emt 0:00:14]} hxg4 {[%emt 0:00:04]} 37. hxg4 {[%emt 0:00:05]} Nb5 {[%emt 0:01:01]} 38. Bb2 {[%emt 0:00:17]} Nd6+ {[%emt 0:00:38]} 39. Kf3 {[%emt 0:00:08]} c4 {[%emt 0:01:03]} 40. dxc4 {[%emt 0:01:33]} Nxc4 {[%emt 0:00:03]} 41. Bd4 {[%emt 0:30:52]} b5 {[%emt 0:03:44]} 42. Ke4 {[%emt 0:00:00]} Na5 {[%emt 0:02:49]} 43. Kd3 {[%emt 0:00:00]} Nc6 {[%emt 0:00:43]} 44. Bc3 {[%emt 0:00:00]} Ne5+ {[%emt 0:06:29]} 45. Kd4 {[%emt 0:00:00]} Kd6 {[%emt 0:02:10]} 46. Bb4+ {[%emt 0:00:00]} Kc6 {[%emt 0:00:37]} 47. Be7 {[%emt 0:01:06]} Nxg4 {[%emt 0:00:36]} 48. Ke4 {[%emt 0:00:33]} Kd7 {[%emt 0:01:07]} 49. Bc5 {[%emt 0:00:54]} Ke6 {[%emt 0:00:51]} 50. Bd4 {[%emt 0:00:59]} Ne5 {[%emt 0:00:43]} 51. Bb6 {[%emt 0:01:18]} Nc6 {[%emt 0:02:58]} 52. Bc5 {[%emt 0:00:31]} f5+ {[%emt 0:01:20]} 53. Kd3 {[%emt 0:00:24]} Kd5 {[%emt 0:00:19]} 54. Bf8 {[%emt 0:00:24]} g4 {[%emt 0:00:24]} 55. a3 {[%emt 0:00:26]} Ne5+ {[%emt 0:00:37]} 56. Kc3 {[%emt 0:00:55]} g3 {[%emt 0:00:12]} 57. e4+ {[%emt 0:01:04]} Kxe4 {[%emt 0:01:15]} 58. Bc5 {[%emt 0:00:23]} g2 {[%emt 0:00:17]} 59. Ba7 {[%emt 0:00:41]} f4 {[%emt 0:00:20]} 60. Bb6 {[%emt 0:00:39]} f3 {[%emt 0:00:29]} 61. Kb4 {[%emt 0:00:35]} f2 {[%emt 0:00:41]} 62. Bxf2 {[%emt 0:00:25]} Nd3+ {[%emt 0:00:09]} 0-1

[Event "GER-chT Youth Countries 2018"]
[Site "Wurzburg"]
[Date "2018.10.03"]
[Round "1"]
[White "Ley, Sabrina"]
[Black "Focke, Adrian"]
[Result "1-0"]
[ECO "B23"]
[WhiteElo "1902"]
[BlackElo "1804"]
[Annotator "NA"]
[PlyCount "127"]
[EventDate "2018.10.03"]
[EventType "team-tourn"]
[EventCountry "GER"]
[SourceTitle "playchess.com"]
[Source "ChessBase"]
[SourceQuality "1"]
[TimeControl "40/5400+30:1800+30"]

1. e4 {[%emt 0:00:00]} c5 {[%emt 0:00:00]} 2. Nc3 {[%emt 0:00:00]} e6 {[%emt 0:00:02]} 3. Nge2 {[%emt 0:00:00]} Nc6 {[%emt 0:00:50]} 4. g3 {[%emt 0:00:00]} g6 {[%emt 0:01:28]} 5. d4 {[%emt 0:01:54]} cxd4 {[%emt 0:01:11]} 6. Nxd4 {[%emt 0:00:23]} Bg7 {[%emt 0:00:16] B23: Closed Sicilian: Lines without g3} (6... d6 7. Bg2 a6 8. O-O Bd7 9. a4 Bg7 10. Nxc6 Bxc6 11. Bf4 Be5 12. Be3 Ne7 13. Qd2 O-O 14. Rfd1 {1-0 (38) Popovic,D (2569)-Bojovic,D (2320) Valjevo 2011}) 7. Ndb5 {[%emt 0:06:36]} Nf6 {[%emt 0:15:03]} 8. Nd6+ {[%emt 0:03:36]} Kf8 {[%emt 0:01:06]} 9. Be3 {[%emt 0:17:20]} a6 {[%emt 0:03:18]} 10. Na4 {[%emt 0:14:13]} b5 $146 {[%emt 0:17:12]} ({Predecessor:} 10... Kg8 11. Nb6 Rb8 12. Nbxc8 Rxc8 13. Nxc8 Qxc8 14. Bg2 {1-0 (47) Hennink,W-Wagenaar,H Netherlands 2001}) 11. Nb6 {[%emt 0:11:07]} Rb8 {[%emt 0:00:12]} 12. Nbxc8 {[%emt 0:01:41]} Rxc8 {[%emt 0:00:59]} 13. Nxc8 {[%emt 0:01:40]} Qxc8 {[%emt 0:00:03]} 14. Bg2 {[%emt 0:01:21]} h5 {[%emt 0:02:40]} 15. h3 {[%emt 0:04:37]} d5 {[%emt 0:04:45]} 16. exd5 {[%emt 0:06:03]} Nxd5 {[%emt 0:01:22]} 17. Bxd5 {[%emt 0:13:07]} exd5 {[%emt 0:00:57]} 18. c3 {[%emt 0:02:54]} Qe6 {[%emt 0:03:24]} 19. Qd2 {[%emt 0:07:53]} d4 $18 {[%emt 0:04:42]} 20. cxd4 {[%emt 0:00:41]} Bxd4 {[%emt 0:00:55]} 21. O-O {[%emt 0:01:55]} Bf6 {[%emt 0:06:52]} 22. h4 {[%emt 0:01:28]} Ne5 {[%emt 0:06:35]} 23. Bc5+ {[%emt 0:01:16]} Kg7 {[%emt 0:00:20]} 24. Qe3 {[%emt 0:00:19]} Qc6 {[%emt 0:10:20]} 25. f3 {[%emt 0:00:35]} Rd8 {[%emt 0:03:26]} 26. Rac1 {[%emt 0:01:34]} Nc4 {[%emt 0:02:04]} 27. Qf2 {[%emt 0:00:21]} Rd2 {[%emt 0:04:09]} 28. Qxd2 {[%emt 0:00:22]} Qxc5+ {[%emt 0:03:32]} 29. Kg2 {[%emt 0:00:44]} Ne3+ {[%emt 0:04:01]} 30. Kh1 {[%emt 0:00:36]} Nxf1 {[%emt 0:00:13]} 31. Rxf1 {[%emt 0:00:00]} Qe5 {[%emt 0:00:17]} 32. Kg2 {[%emt 0:00:30]} Qxb2 {[%emt 0:00:36]} 33. Qxb2 {[%emt 0:00:10]} Bxb2 {[%emt 0:00:03]} 34. Rd1 {[%emt 0:00:22]} b4 {[%emt 0:02:47]} 35. Rd6 {[%emt 0:00:21]} a5 {[%emt 0:00:07]} 36. Ra6 {[%emt 0:00:32]} Bc3 {[%emt 0:00:04]} 37. Kf2 {[%emt 0:00:16]} Bd2 {[%emt 0:01:45]} 38. Ke2 {[%emt 0:00:24]} Bc3 {[%emt 0:00:03]} 39. Kf1 {[%emt 0:00:59]} Bd2 {[%emt 0:00:06]} 40. Ke2 {[%emt 0:00:03]} Bc3 {[%emt 0:00:05]} 41. Ra7 {[%emt 0:10:27]} Be5 {[%emt 0:06:24]} 42. g4 {[%emt 0:04:52]} hxg4 {[%emt 0:02:38]} 43. fxg4 {[%emt 0:00:08]} Bf6 {[%emt 0:05:29]} 44. h5 {[%emt 0:06:08]} Bd8 {[%emt 0:10:08]} 45. Kf3 {[%emt 0:01:05]} Kh6 {[%emt 0:03:52]} 46. Rd7 {[%emt 0:06:25]} Bg5 {[%emt 0:02:02]} 47. Rxf7 {[%emt 0:01:57]} gxh5 {[%emt 0:01:07]} 48. gxh5 {[%emt 0:00:17]} Kxh5 {[%emt 0:00:06]} 49. Ra7 {[%emt 0:00:22]} Bd8 {[%emt 0:00:59]} 50. Ra8 {[%emt 0:00:42]} Bc7 {[%emt 0:00:16]} 51. Ke4 {[%emt 0:00:12]} Kg6 {[%emt 0:01:10]} 52. Kd5 {[%emt 0:01:16]} Kf6 {[%emt 0:00:39]} 53. Kc6 {[%emt 0:01:39]} Be5 {[%emt 0:01:37]} 54. Rxa5 {[%emt 0:00:31]} Bc3 {[%emt 0:00:08]} 55. Rd5 {[%emt 0:01:41]} Ke6 {[%emt 0:00:38]} 56. Rh5 {[%emt 0:01:00]} Ke7 {[%emt 0:00:39]} 57. Kc5 {[%emt 0:00:37]} Ke6 {[%emt 0:00:54]} 58. Kc4 {[%emt 0:00:08]} Kd6 {[%emt 0:00:05]} 59. a3 {[%emt 0:00:19]} Kc6 {[%emt 0:01:37]} 60. axb4 {[%emt 0:00:16]} Be1 {[%emt 0:00:04]} 61. Rh6+ {[%emt 0:00:15]} Kc7 {[%emt 0:00:08]} 62. Kb5 {[%emt 0:00:25]} Bd2 {[%emt 0:00:14]} 63. Rh2 {[%emt 0:00:53]} Be1 {[%emt 0:00:06]} 64. Re2 {[%emt 0:00:14]} 1-0

[Event "GER-chT Youth Countries 2018"]
[Site "Wurzburg"]
[Date "2018.10.03"]
[Round "1"]
[White "von Krosigk, Florian"]
[Black "Arakelian, Aik"]
[Result "*"]
[ECO "C50"]
[WhiteElo "1897"]
[BlackElo "1879"]
[Annotator "NA RC"]
[PlyCount "29"]
[EventDate "2018.10.03"]
[EventType "team-tourn"]
[EventCountry "GER"]
[SourceTitle "playchess.com"]
[Source "ChessBase"]
[SourceQuality "1"]
[TimeControl "40/5400+30:1800+30"]

1. e4 e5 2. Nf3 Nc6 3. Bc4 Nf6 4. d3 Bc5 5. O-O d6 6. c3 Bb6 7. Nbd2 O-O 8. Bb3 a6 9. h3 g6 10. Bc2 h6 11. Re1 Re8 12. Nf1 d5 13. exd5 Nxd5 14. Bb3 Nf4 15. Ng3 *